bitfinex-derivatives/quotes_ETHF0:USTF0_20250426
["timestamp","ask_amount","ask_price","bid_price","bid_amount"]
[1745627555228,2.75024,1791.9,1791.8,2.79047]
[1745627558323,1.6348,1791.9,1791.8,2.79047]
[1745627558525,2.82776,1792.1,1792.0,1.11537]
[1745627558829,4.47196,1792.1,1792.0,1.11537]
[1745627559426,1.11537,1792.0,1791.9,2.70201]
[1745627559631,1.11537,1792.0,1791.8,1.11546]
[1745627559632,1.11547,1791.9,1791.8,1.11546]
[1745627560431,1.1155,1791.8,1791.7,2.70212]
[1745627563034,1.6442,1792.0,1791.7,2.70212]
[1745627563035,2.75962,1792.0,1791.9,1.11544]
[1745627564936,1.11544,1791.9,1791.8,2.74379]
[1745627565634,1.11544,1791.9,1791.8,1.11549]
[1745627566436,1.1155,1791.8,1791.7,1.643]
[1745627566635,1.1155,1791.8,1791.5,6.8868]
[1745627566636,1.11562,1791.6,1791.5,4.32344]
[1745627566934,1.11575,1791.4,1791.3,1.11578]
[1745627567535,2.83455,1791.4,1791.3,1.11578]
[1745627567721,1.7188,1791.4,1791.3,1.11578]
[1745627567928,1.7188,1791.4,1791.3,2.71538]
[1745627569430,2.83455,1791.4,1791.3,2.71538]
[1745627570637,1.7188,1791.4,1791.3,2.71538]
[1745627571536,1.93123,1791.5,1791.4,1.11575]
[1745627571838,1.93123,1791.5,1791.4,2.80275]
[1745627572026,0.8155,1791.5,1791.4,2.80275]
[1745627572738,5.3373,1791.6,1791.5,1.11569]
[1745627572941,3.675,1791.6,1791.5,2.80699]
[1745627573246,4.79062,1791.6,1791.5,2.80699]
[1745627573429,3.675,1791.6,1791.5,2.80699]
[1745627574237,3.66775,1791.8,1791.7,1.11556]
[1745627574438,1.91215,1791.8,1791.7,1.11556]
[1745627574933,1.91215,1791.8,1791.7,1.6913]
[1745627576136,3.53975,1791.8,1791.7,1.6913]
[1745627576437,1.11556,1791.7,1791.6,1.99182]
[1745627577435,1.11587,1791.3,1791.1,1.11589]
[1745627577633,2.78931,1791.5,1791.1,3.3674]
[1745627577834,1.11579,1791.4,1791.2,1.11582]
[1745627578139,1.11579,1791.4,1791.2,8.11622]
[1745627578639,1.11579,1791.4,1791.3,1.6924]
[1745627579231,1.11579,1791.4,1791.3,7.0004]
[1745627579439,1.93849,1791.4,1791.3,5.308]
[1745627579836,3.57649,1791.4,1791.3,5.308]
[1745627580231,1.11587,1791.2,1791.1,1.675]
[1745627580433,1.11587,1791.2,1791.1,3.3665]
[1745627580632,2.75382,1791.3,1791.2,1.11587]
[1745627580835,2.75382,1791.3,1791.2,2.80737]
[1745627581234,2.75382,1791.3,1791.2,8.11537]
[1745627581841,2.75382,1791.3,1791.2,6.9995]
[1745627582233,1.638,1791.3,1791.2,8.11537]
[1745627582436,0.8227,1791.4,1791.3,1.11577]
[1745627582437,1.11576,1791.4,1791.3,1.11577]
[1745627582637,1.11576,1791.4,1791.3,1.6756]
[1745627582837,2.85346,1791.4,1791.3,1.6756]
[1745627584140,2.85346,1791.4,1791.3,2.79141]
[1745627584346,3.2078,1791.5,1791.4,1.11575]
[1745627584645,4.79151,1791.8,1791.7,1.11556]
[1745627584843,1.11559,1791.7,1791.6,1.11558]
[1745627585148,1.11559,1791.7,1791.6,2.85988]
[1745627586346,1.11559,1791.7,1791.6,1.7443]
[1745627586647,2.73389,1791.7,1791.6,2.85992]
[1745627587739,3.676,1791.8,1791.6,2.85992]
[1745627587740,4.79155,1791.8,1791.7,1.11556]
[1745627588045,4.79155,1791.8,1791.7,1.7303]
[1745627589742,1.11556,1791.7,1791.6,1.1156]
[1745627589940,1.11556,1791.7,1791.6,2.8459]
[1745627590144,2.70286,1791.7,1791.6,2.8459]
[1745627591051,3.676,1791.8,1791.7,1.11556]
[1745627591253,3.676,1791.8,1791.7,2.76186]
[1745627591552,4.32316,1792.1,1792.0,1.11537]
[1745627591849,7.99916,1792.1,1791.8,1.6463]
[1745627592048,7.99916,1792.1,1792.0,1.11537]
[1745627592451,7.99916,1792.1,1791.7,1.11554]
[1745627592452,6.8838,1792.1,1791.7,1.11554]
[1745627592653,1.11556,1791.7,1791.6,5.124]
[1745627592846,1.11556,1791.7,1791.6,3.2078]
[1745627593045,1.11562,1791.6,1791.5,1.11565]
[1745627593246,1.11569,1791.5,1791.4,8.70201]
[1745627593551,1.11569,1791.5,1791.4,7.5863]
[1745627594048,1.11569,1791.5,1791.4,8.70205]
[1745627594654,1.6938,1791.6,1791.5,1.11569]
[1745627594853,1.11561,1791.7,1791.4,7.5863]
[1745627594854,1.11561,1791.7,1791.6,1.11562]
[1745627595148,1.11562,1791.6,1791.5,1.6795]
[1745627595359,1.6807,1791.7,1791.4,6.7418]
[1745627595651,1.6807,1791.5,1791.4,0.8018]
[1745627595858,2.79644,1791.5,1791.4,1.11572]
[1745627596350,1.11575,1791.4,1791.3,2.79531]
[1745627596550,3.67075,1791.4,1791.3,2.79531]
[1745627596751,2.555,1791.4,1791.3,2.79531]
[1745627597153,2.555,1791.4,1791.3,8.10331]
[1745627598253,0.8743,1791.4,1791.3,8.10331]
[1745627598453,1.11562,1791.6,1791.5,1.11569]
[1745627598648,1.11565,1791.6,1791.5,1.11562]
[1745627599155,1.11565,1791.6,1791.5,2.75112]
[1745627599751,1.11565,1791.6,1791.3,1.11577]
[1745627599752,1.1158,1791.4,1791.3,1.11577]
[1745627600446,1.1158,1791.4,1791.2,4.8153]
[1745627600447,2.77574,1791.5,1791.4,1.11575]
[1745627600950,1.11581,1791.3,1791.2,3.2078]
[1745627601550,1.11587,1791.2,1791.1,2.75501]
[1745627601751,1.11587,1791.2,1791.1,4.36251]
[1745627601956,1.11593,1791.1,1791.0,1.11599]
[1745627602254,1.116,1791.0,1790.9,2.72353]
[1745627603246,1.116,1791.0,1790.9,2.72356]
[1745627603448,1.11612,1790.8,1790.7,5.308]
[1745627604044,2.72412,1790.8,1790.7,5.308]
[1745627604247,1.11625,1790.6,1790.5,2.78006]
[1745627604449,2.72423,1790.7,1790.6,1.11625]
[1745627604755,1.608,1790.7,1790.5,1.6638]
[1745627604949,1.11625,1790.6,1790.5,2.78006]
[1745627605146,1.11625,1790.6,1790.5,8.08806]
[1745627605547,1.11625,1790.6,1790.5,6.9718]
[1745627606261,1.11625,1790.6,1790.5,1.6638]
[1745627606752,1.11637,1790.4,1790.3,1.6293]
[1745627607048,1.11637,1790.4,1790.3,2.74573]
[1745627607250,1.11637,1790.4,1790.3,1.6293]
[1745627607454,1.11637,1790.4,1790.3,2.74573]
[1745627608354,1.11637,1790.4,1790.3,1.6293]
[1745627608547,1.11637,1790.4,1790.3,2.74573]
[1745627609145,1.6802,1790.5,1790.4,1.11637]
[1745627609351,2.79657,1790.5,1790.4,1.6692]
[1745627609551,2.79657,1790.5,1790.4,1.11637]
[1745627610355,1.6802,1790.5,1790.4,1.11637]
[1745627610546,3.663,1790.6,1790.3,1.6692]
[1745627610547,1.11626,1790.6,1790.5,1.11625]
[1745627610751,7.31914,1790.7,1790.6,1.11625]
[1745627611358,1.11628,1790.6,1790.5,1.11626]
[1745627611657,6.2029,1790.7,1790.4,1.6692]
[1745627611658,1.11631,1790.5,1790.4,2.78553]
[1745627612362,4.46703,1790.6,1790.2,3.2078]
[1745627612549,1.11643,1790.3,1790.2,5.99737]
[1745627612960,2.84333,1790.3,1790.2,5.99737]
[1745627613155,2.84333,1790.3,1790.2,2.78957]
[1745627613349,7.7259,1790.3,1789.9,5.94]
[1745627613557,1.11658,1790.1,1790.0,1.6731]
[1745627613764,1.11658,1790.1,1790.0,2.78966]
[1745627613959,3.72263,1790.2,1790.1,1.11656]
[1745627614262,3.7226,1790.2,1790.1,2.78966]
[1745627614954,2.6061,1790.2,1790.1,2.78966]
[1745627615362,2.6061,1790.2,1790.0,5.308]
[1745627615562,9.64046,1790.1,1790.0,5.308]
[1745627616055,6.43266,1790.1,1790.0,5.308]
[1745627616259,6.43266,1790.1,1790.0,1.6978]
[1745627616655,1.11673,1789.9,1789.8,1.11673]
[1745627616862,1.11673,1789.9,1789.8,2.81453]
[1745627617063,1.11673,1789.9,1789.8,8.12253]
[1745627618856,3.664,1790.1,1790.0,1.11662]
[1745627619263,3.664,1790.1,1790.0,6.42462]
[1745627620466,5.64461,1790.4,1790.3,1.11643]
[1745627620961,5.2997,1790.5,1790.4,1.11637]
[1745627621160,1.96758,1790.6,1790.4,1.11637]
[1745627621358,1.11634,1790.5,1790.4,1.11632]
[1745627621558,1.11637,1790.4,1790.3,6.42441]
[1745627621767,4.5163,1790.6,1790.3,5.308]
[1745627621967,5.63258,1790.6,1790.5,1.11631]
[1745627622667,6.185,1790.6,1790.5,1.11631]
[1745627622963,3.665,1790.6,1790.5,1.11631]
[1745627623167,3.665,1790.6,1790.5,6.42431]
[1745627623365,1.93739,1790.7,1790.6,1.11625]
[1745627623766,1.11625,1790.6,1790.5,6.42426]
[1745627624170,3.60613,1790.7,1790.6,1.11625]
[1745627624759,3.60613,1790.7,1790.4,2.79093]
[1745627624760,1.11629,1790.6,1790.5,1.11628]
[1745627624965,2.78469,1790.6,1790.5,1.11628]
[1745627625169,1.11633,1790.5,1790.4,1.11632]
[1745627625471,1.11643,1790.4,1790.3,1.1164]
[1745627626074,1.93489,1790.5,1790.4,1.11637]
[1745627626768,0.8185,1790.5,1790.4,1.11637]
[1745627626974,4.8475,1790.7,1790.6,1.11625]
[1745627627172,4.0263,1790.7,1790.6,1.11625]
[1745627627369,4.32388,1790.9,1790.7,1.11618]
[1745627627576,2.78971,1791.2,1791.1,1.11593]
[1745627627577,0.8596,1791.2,1791.1,1.11593]
[1745627627767,0.8596,1791.2,1790.9,3.2078]
[1745627627970,1.5906,1791.1,1790.8,2.79028]
[1745627628169,1.5906,1791.1,1791.0,1.116]
[1745627628370,2.70653,1791.1,1791.0,1.116]
[1745627628571,1.116,1791.0,1790.9,1.97654]
[1745627628881,2.7066,1791.0,1790.9,1.97656]
[1745627629066,1.5906,1791.0,1790.9,7.28456]
[1745627629270,2.7066,1791.0,1790.9,7.28456]
[1745627629877,2.7066,1791.0,1790.9,6.1685]
[1745627630269,2.7066,1791.0,1790.9,7.28456]
[1745627630472,1.5906,1791.0,1790.9,7.28456]
[1745627630966,1.11598,1791.1,1791.0,1.116]
[1745627631780,3.61402,1791.2,1791.1,1.11593]
[1745627631978,3.61402,1791.2,1790.9,6.1685]
[1745627631979,1.11594,1791.1,1791.0,1.11594]
[1745627632175,0.8596,1791.2,1791.1,1.11593]
[1745627632380,3.2078,1791.3,1791.2,1.11587]
[1745627633178,3.2078,1791.3,1791.2,6.42387]
[1745627633387,1.1158,1791.4,1791.3,1.11578]
[1745627633674,1.1158,1791.4,1791.2,5.308]
[1745627633675,1.11581,1791.3,1791.2,6.42382]
[1745627634682,4.81842,1792.0,1791.2,14.011]
[1745627634979,5.3219,1792.0,1791.9,1.11544]
[1745627635281,1.6701,1792.1,1792.0,1.11537]
[1745627635282,2.78542,1792.1,1792.0,1.11537]
[1745627635476,2.78545,1792.1,1792.0,1.11537]
[1745627635677,4.40435,1792.1,1792.0,1.11537]
[1745627635877,1.11537,1792.0,1791.9,6.4234]
[1745627636180,3.289,1792.1,1792.0,1.11537]
[1745627636575,4.40431,1792.1,1792.0,1.11537]
[1745627636784,1.11541,1792.0,1791.9,1.11544]
[1745627636980,1.11541,1792.0,1791.8,2.80136]
[1745627637180,3.289,1792.1,1791.9,1.11543]
[1745627637384,1.11541,1792.0,1791.9,1.11543]
[1745627637586,3.289,1792.1,1791.9,1.11543]
[1745627637587,4.40436,1792.1,1791.9,1.11543]
[1745627637785,4.40436,1792.1,1792.0,1.11537]
[1745627637979,1.11544,1791.9,1791.8,1.6859]
[1745627638285,1.11542,1792.0,1791.9,1.11543]
[1745627639578,1.11542,1792.0,1791.8,1.6859]
[1745627639579,1.11544,1791.9,1791.8,2.80138]
[1745627640986,1.11556,1791.7,1791.6,3.2078]
[1745627641284,1.6336,1791.8,1791.5,1.7414]
[1745627641585,1.1156,1791.7,1791.6,1.1156]
[1745627642582,2.74915,1791.8,1791.7,1.11556]
[1745627643986,1.6336,1791.8,1791.7,1.11556]
[1745627644377,1.11561,1791.7,1791.6,1.1156]
[1745627645189,2.74914,1791.8,1791.7,1.11556]
[1745627645387,2.74914,1791.8,1791.5,4.53059]
[1745627645388,1.11562,1791.6,1791.5,1.7414]
[1745627645784,1.11562,1791.6,1791.5,2.85709]
[1745627645982,2.80302,1791.6,1791.5,2.85709]
[1745627646183,2.80302,1791.6,1791.5,1.7414]
[1745627646686,2.80302,1791.6,1791.5,2.85709]
[1745627646985,2.80302,1791.6,1791.5,1.7414]
[1745627647688,2.80302,1791.6,1791.5,2.85709]
[1745627648290,2.80302,1791.6,1791.5,1.7414]
[1745627648690,2.80302,1791.6,1791.5,2.85709]
[1745627649091,2.77321,1791.7,1791.6,1.11562]
[1745627649287,1.11569,1791.5,1791.4,5.94]
[1745627649492,7.63007,1791.6,1791.2,1.11585]
[1745627649689,1.11593,1791.1,1791.0,3.2078]
[1745627649991,1.11593,1791.1,1791.0,6.01536]
[1745627650191,1.11593,1791.1,1790.8,1.1161]
[1745627650192,1.11611,1790.9,1790.8,1.1161]
[1745627650391,1.11611,1790.9,1790.8,1.6916]
[1745627650584,1.11611,1790.9,1790.8,2.80772]
[1745627650786,2.74911,1791.0,1790.9,1.11606]
[1745627650991,2.74911,1791.0,1790.9,2.80766]
[1745627651187,2.74911,1791.0,1790.9,8.11566]
[1745627652192,1.11598,1791.1,1790.9,6.9996]
[1745627652393,1.11593,1791.1,1791.0,1.7219]
[1745627652591,1.11593,1791.1,1791.0,2.8379]
[1745627652788,1.91872,1791.2,1791.1,1.11593]
[1745627652988,2.77115,1791.3,1791.1,1.7219]
[1745627653292,1.11587,1791.2,1791.1,2.83779]
[1745627654795,3.2078,1791.5,1791.4,1.11575]
[1745627655293,1.11577,1791.4,1791.3,1.11578]
[1745627655494,1.11575,1791.4,1791.3,2.70838]
[1745627655698,2.78584,1791.5,1791.3,2.70838]
[1745627655907,2.78584,1791.5,1791.4,1.5926]
[1745627656201,1.11592,1791.2,1791.0,7.05594]
[1745627656501,1.11592,1791.2,1791.1,2.70853]
[1745627657095,1.6701,1791.4,1791.0,3.2078]
[1745627657393,1.1159,1791.2,1791.1,1.11591]
[1745627658100,1.116,1791.0,1790.9,2.70862]
[1745627658494,1.11598,1791.1,1791.0,1.11598]
[1745627659291,1.116,1791.0,1790.9,2.70861]
[1745627659803,1.11598,1791.1,1791.0,1.11597]
[1745627660098,9.75507,1791.3,1791.2,1.11587]
[1745627660295,8.6392,1791.3,1791.0,5.308]
[1745627660502,1.11593,1791.1,1791.0,8.15494]
[1745627660694,1.11593,1791.1,1791.0,6.42394]
[1745627661096,1.11593,1791.1,1790.8,3.2078]
[1745627661402,1.11593,1791.1,1791.0,1.116]
[1745627662200,1.11593,1791.1,1791.0,6.424]
[1745627662396,2.7315,1791.2,1791.1,1.11593]
[1745627662699,1.1159,1791.2,1791.1,1.11593]
[1745627663495,1.11593,1791.1,1791.0,5.308]
[1745627664800,1.11593,1791.1,1791.0,6.424]
[1745627666305,2.73151,1791.2,1791.1,1.11593]
[1745627667101,1.11593,1791.1,1791.0,5.308]
[1745627667404,2.7894,1791.4,1791.0,5.308]
[1745627667405,1.11559,1791.7,1791.0,13.5158]
[1745627667604,1.11561,1791.7,1791.6,1.11558]
[1745627667798,3.743,1791.9,1791.5,5.99694]
[1745627668005,1.11545,1791.9,1791.8,1.11545]
[1745627668806,1.11544,1791.9,1791.8,1.11545]
[1745627669305,1.11542,1792.0,1791.9,1.11543]
[1745627669507,1.11544,1791.9,1791.8,6.42345]
[1745627669904,1.11541,1792.0,1791.9,1.11542]
[1745627670105,1.11544,1791.9,1791.8,5.308]
[1745627670402,2.83254,1791.9,1791.8,5.308]
[1745627671106,2.83254,1791.9,1791.8,6.4235]
[1745627671303,2.83254,1791.9,1791.8,1.1155]
[1745627671606,2.83254,1791.9,1791.6,1.7167]
[1745627671607,1.7171,1791.9,1791.6,1.7167]
[1745627671803,2.83259,1791.9,1791.8,1.1155]
[1745627672205,1.11556,1791.7,1791.6,1.7167]
[1745627672810,2.83266,1791.7,1791.6,1.7167]
[1745627673003,1.11569,1791.5,1791.4,5.94]
[1745627673308,1.11569,1791.5,1791.4,8.77381]
[1745627673610,1.11569,1791.5,1791.4,8.7738]
[1745627674198,1.11569,1791.5,1791.4,14.0818]
[1745627676409,1.11569,1791.5,1791.4,12.9661]
[1745627676610,2.81809,1791.5,1791.4,12.9661]
[1745627677112,2.81809,1791.5,1791.4,7.0261]
[1745627677311,2.81809,1791.5,1791.4,1.7181]
[1745627677908,1.11575,1791.4,1791.3,0.8331]
[1745627678107,1.11575,1791.4,1791.3,2.5696]
[1745627678306,1.11575,1791.4,1791.3,7.8776]
[1745627678714,1.11575,1791.4,1791.3,8.99341]
[1745627679410,2.81813,1791.5,1791.4,1.11575]
[1745627679612,1.11573,1791.5,1791.4,2.83855]
[1745627680413,1.11573,1791.5,1791.4,1.7228]
[1745627680815,2.78603,1791.5,1791.4,1.7228]
[1745627681321,2.78603,1791.5,1791.4,2.83855]
[1745627682015,2.78603,1791.5,1791.4,1.7228]
[1745627682615,1.11575,1791.4,1791.3,0.8331]
[1745627682815,2.84075,1791.4,1791.3,0.8331]
[1745627683014,2.84075,1791.4,1791.3,2.5849]
[1745627683220,2.84075,1791.4,1791.3,7.8929]
[1745627683810,2.84075,1791.4,1791.3,9.00871]
[1745627684121,2.84075,1791.4,1791.3,7.0598]
[1745627684317,2.84075,1791.4,1791.3,5.308]
[1745627684624,8.69075,1791.4,1791.3,0.23]
[1745627684824,1.116,1791.0,1790.9,2.86783]
[1745627685024,1.11596,1791.1,1791.0,1.11595]
[1745627685724,1.11588,1791.2,1791.1,1.11593]
[1745627685924,8.06567,1791.3,1791.2,1.11587]
[1745627686620,1.11587,1791.2,1791.1,2.8033]
[1745627688520,4.5773,1791.5,1791.1,7.68503]
[1745627688724,1.11581,1791.4,1791.3,1.11578]
[1745627689220,1.11581,1791.4,1791.3,5.308]
[1745627689420,2.72741,1791.4,1791.3,5.308]
[1745627692321,7.72741,1791.4,1791.3,4.07594]
[1745627692525,1.11606,1790.9,1790.8,5.94]
[1745627692722,1.11622,1790.7,1790.6,1.11621]
[1745627694033,2.87317,1790.8,1790.7,1.11618]
[1745627694335,1.11609,1790.9,1790.8,1.11609]
[1745627694532,1.11615,1790.8,1790.7,1.11614]
[1745627694732,2.75352,1790.9,1790.8,1.11612]
[1745627695339,2.75352,1790.9,1790.8,5.308]
[1745627700940,5.96132,1790.9,1790.8,5.308]
[1745627701442,1.11643,1790.3,1790.2,4.82e-06]
[1745627701737,4.82443,1790.3,1790.2,4.82e-06]
[1745627702136,6.50623,1790.3,1790.2,4.82e-06]
[1745627704049,4.82443,1790.3,1790.2,4.82e-06]
[1745627704344,4.82443,1790.3,1790.2,6.99600482]
[1745627705844,1.11641,1790.4,1790.3,1.11642]
[1745627706042,1.11641,1790.4,1790.3,3.3642]
[1745627706238,1.11641,1790.4,1790.3,2.5543]
[1745627706441,2.87441,1790.4,1790.3,2.5543]
[1745627707146,2.87441,1790.4,1790.3,7.8623]
[1745627707645,1.11641,1790.4,1790.3,6.996]
[1745627707945,2.87441,1790.4,1790.3,6.996]
[1745627708145,2.87441,1790.4,1790.3,1.688]
[1745627711439,1.11643,1790.3,1790.2,4.82e-06]
[1745627711641,3.60073,1790.3,1790.2,1.72560482]
[1745627715043,3.60073,1790.3,1790.2,4.82e-06]
[1745627715248,4.44683,1790.3,1790.2,4.82e-06]
[1745627716244,9.75483,1790.3,1790.2,4.82e-06]
[1745627717948,1.11668,1789.9,1789.8,1.6266]
[1745627718243,4.32448,1789.9,1789.8,1.6266]
[1745627719540,1.11668,1789.9,1789.8,1.6266]
[1745627719848,1.11668,1789.9,1789.8,2.74335]
[1745627720249,1.11668,1789.9,1789.8,1.6266]
[1745627721148,1.11668,1789.9,1789.8,2.74335]
[1745627722156,1.11668,1789.9,1789.8,6.9346]
[1745627723253,1.11668,1789.9,1789.8,1.6266]
[1745627723452,1.11668,1789.9,1789.8,2.74335]
[1745627723850,1.117,1789.4,1789.3,7.05706]
[1745627724048,1.117,1789.4,1789.3,8.77686]
[1745627724353,1.117,1789.4,1789.3,14.08486]
[1745627724754,1.11698,1789.5,1789.4,1.11699]
[1745627725154,1.11698,1789.5,1789.4,6.42499]
[1745627725355,1.11698,1789.5,1789.4,8.16639]
[1745627725554,1.11698,1789.5,1789.4,7.0494]
[1745627726353,3.2078,1790.3,1789.4,14.84188]
[1745627726547,3.2078,1790.3,1789.8,1.11673]
[1745627726548,1.11672,1789.9,1789.8,1.11673]
[1745627726753,5.7229,1790.1,1789.6,4.53353]
[1745627726950,5.7229,1790.1,1789.9,1.11666]
[1745627726951,1.11665,1790.0,1789.9,1.11666]
[1745627727150,1.11669,1789.9,1789.8,1.1167]
[1745627728152,1.11669,1789.9,1789.8,6.4247]
[1745627728353,1.11664,1790.0,1789.9,1.11664]
[1745627728851,5.7229,1790.1,1789.8,5.308]
[1745627729061,1.11664,1790.0,1789.9,1.11664]
[1745627729453,1.11664,1790.0,1789.7,1.6091]
[1745627729657,1.1167,1789.9,1789.8,1.1167]
[1745627729859,2.73647,1790.0,1789.9,1.11668]
[1745627730258,1.11667,1790.0,1789.9,1.11668]
[1745627730857,6.90412,1790.1,1790.0,1.11662]
[1745627731254,1.11662,1790.0,1789.9,6.42464]
[1745627732366,1.11662,1790.0,1789.9,5.308]
[1745627732564,2.83112,1790.0,1789.9,5.308]
[1745627733264,1.11681,1789.7,1789.6,1.11683]
[1745627733456,3.712,1789.9,1789.5,7.6827]
[1745627733656,3.712,1789.9,1789.5,4.8905]
[1745627733860,4.82869,1789.9,1789.8,1.11675]
[1745627734264,4.82869,1789.9,1789.8,6.42475]
[1745627734462,3.712,1789.9,1789.8,6.42475]
[1745627734858,3.712,1789.9,1789.8,5.308]
[1745627734859,8.03648,1789.9,1789.8,5.308]
[1745627735053,8.83578,1789.9,1789.8,5.308]
[1745627735256,8.83578,1789.9,1789.6,1.11686]
[1745627735257,1.11681,1789.7,1789.6,1.11686]
[1745627736263,4.82872,1789.9,1789.8,1.11675]
[1745627736466,3.712,1789.9,1789.8,1.11675]
[1745627736662,4.82868,1789.9,1789.8,1.11675]
[1745627736865,1.11676,1789.8,1789.7,1.11676]
[1745627737059,1.11676,1789.8,1789.7,6.42476]
[1745627737253,1.11676,1789.8,1789.7,3.57973]
[1745627737254,4.32456,1789.8,1789.7,3.57973]
[1745627737459,6.90896,1789.8,1789.7,3.57973]
[1745627737659,11.90896,1789.8,1789.7,3.57973]
[1745627738371,11.1002,1789.8,1789.7,1.11681]
[1745627738663,5.308,1789.8,1789.7,4.32461]
[1745627738854,5.308,1789.8,1789.7,9.32461]
[1745627739258,1.11663,1790.0,1789.9,1.11668]
[1745627739568,1.11668,1789.9,1789.8,1.6481]
[1745627739862,1.11667,1790.0,1789.8,2.7648]
[1745627740065,1.11667,1790.0,1789.9,1.11668]
[1745627740265,1.11668,1790.0,1789.8,8.07282]
[1745627740465,1.11668,1789.9,1789.8,6.9561]
[1745627740663,6.53158,1789.9,1789.8,5.308]
[1745627741763,7.38218,1789.9,1789.8,5.308]
[1745627742060,12.38218,1789.9,1789.8,5.308]
[1745627742265,1.11693,1789.5,1789.4,1.6751]
[1745627742569,1.11693,1789.5,1789.4,2.7921]
[1745627743166,1.11693,1789.5,1789.4,6.9831]
[1745627743565,1.11693,1789.5,1789.4,8.1001]
[1745627744468,1.11693,1789.5,1789.4,6.9831]
[1745627744767,2.71983,1789.5,1789.4,6.9831]
[1745627744968,3.51613,1789.5,1789.4,6.9831]
[1745627747368,3.51613,1789.5,1789.4,1.6751]
[1745627748174,3.51328439,1789.5,1789.4,6.9831]
[1745627749064,5.62812,1789.6,1789.4,6.9831]
[1745627749260,5.62812,1789.6,1789.5,1.754]
[1745627749465,1.11693,1789.5,1789.4,5.308]
[1745627751573,1.11693,1789.5,1789.4,7.062]
[1745627753667,9.32473,1789.5,1789.4,5.308]
[1745627753968,9.32473,1789.5,1789.4,0.98255]
[1745627754173,1.11712,1789.2,1789.1,5.94]
[1745627754368,4.32492,1789.2,1789.1,5.94]
[1745627754871,5.11962,1789.2,1789.1,5.94]
[1745627755076,5.11962,1789.2,1788.9,1.7231]
[1745627755077,1.11724,1789.0,1788.9,1.7231]
[1745627756175,1.11724,1789.0,1788.9,8.14841]
[1745627757373,1.11724,1789.0,1788.9,7.0311]
[1745627757876,1.11724,1789.0,1788.9,8.14841]
[1745627758570,1.11724,1789.0,1788.9,7.0311]
[1745627759381,9.86024,1789.0,1788.9,5.308]
[1745627759570,8.06804,1789.0,1788.9,5.308]
[1745627760067,8.06804,1789.0,1788.9,6.42531]
[1745627760469,8.06804,1789.0,1788.9,5.308]
[1745627760878,8.06804,1789.0,1788.9,7.8121]
[1745627761276,4.86023,1789.1,1789.0,1.11724]
[1745627761579,4.86023,1789.1,1789.0,1.7409]
[1745627762173,4.86023,1789.1,1789.0,7.0489]
[1745627765081,4.86023,1789.1,1789.0,8.16614]
[1745627765282,4.86023,1789.1,1789.0,7.0489]
[1745627766885,4.86023,1789.1,1789.0,8.16614]
[1745627767382,3.743,1789.1,1789.0,8.16614]
[1745627767571,5.99969,1789.8,1789.1,2.79296]
[1745627767771,5.99969,1789.8,1789.4,1.11697]
[1745627767772,4.85997,1789.5,1789.4,1.11697]
[1745627768171,4.85997,1789.5,1789.4,6.42497]
[1745627768575,4.85997,1789.5,1789.4,8.16817]
[1745627769885,3.2078,1789.8,1789.4,12.0512]
[1745627770085,6.9508,1790.0,1789.9,1.11668]
[1745627770690,8.06744,1790.0,1789.8,2.8198]
[1745627770882,6.9508,1790.0,1789.9,2.81978]
[1745627771083,6.9508,1790.0,1789.9,8.12778]
[1745627771283,8.06742,1790.0,1789.9,8.12778]
[1745627772491,4.85962,1790.0,1789.9,8.12778]
[1745627772886,3.743,1790.0,1789.9,8.12778]
[1745627773291,4.85962,1790.0,1789.9,8.12778]
[1745627774096,4.85962,1790.0,1789.9,7.0111]
[1745627774391,1.6639,1790.2,1790.0,1.11662]
[1745627774392,3.742,1790.2,1790.0,1.11662]
[1745627774690,1.11657,1790.1,1790.0,1.11662]
[1745627775191,1.11657,1790.1,1790.0,6.42462]
[1745627776392,6.45395,1790.2,1790.0,6.42462]
[1745627776594,1.11656,1790.1,1790.0,6.42462]
[1745627777289,3.2078,1790.4,1790.3,1.11643]
[1745627777597,2.82366,1790.6,1790.5,1.11629]
[1745627777893,1.7074,1790.6,1790.5,1.11629]
[1745627779195,3.742,1790.8,1790.7,1.11618]
[1745627780097,3.742,1790.8,1790.6,2.8328]
[1745627780396,4.85812,1790.8,1790.7,5.308]
[1745627780785,3.742,1790.8,1790.7,6.42418]
[1745627781389,4.85812,1790.8,1790.7,6.42418]
[1745627781594,14.68172,1790.8,1790.7,5.308]
[1745627782097,1.11624,1790.7,1790.5,1.11629]
[1745627782298,4.45954,1790.7,1790.5,1.11629]
[1745627782595,1.11626,1790.6,1790.5,1.11629]
[1745627782796,2.78046,1790.6,1790.3,3.2078]
[1745627782996,2.78046,1790.6,1790.5,1.11631]
[1745627783193,1.11634,1790.5,1790.3,3.2078]
[1745627783493,2.78054,1790.5,1790.4,1.11637]
[1745627783894,2.78054,1790.5,1790.3,3.2078]
[1745627783895,1.11637,1790.4,1790.3,4.32419]
[1745627784095,1.11637,1790.4,1790.3,9.63219]
[1745627784299,1.6642,1790.5,1790.4,1.11637]
[1745627784496,2.78051,1790.5,1790.4,1.11637]
[1745627785090,1.6642,1790.5,1790.4,6.42437]